fUSD/lending_fUSD_20260106
["ID","MTS","AMOUNT","RATE_DAILY","PERIOD"]
[400582235,1767732644442,-438.455,0.00028359,2]
[400582237,1767732644451,-1268.108,0.00028359,2]
[400582239,1767732644460,-1215.798,0.00028359,2]
[400582241,1767732644470,-250.0,0.00028359,2]
[400582244,1767732644483,-4914.11,0.00028359,2]
[400582246,1767732644492,-2435.0,0.00028359,2]
[400582249,1767732644500,-4817.0,0.00028359,2]
[400582252,1767732644510,-350.0,0.00028493,5]
[400582254,1767732644519,-2629.6,0.00028923,2]
[400582256,1767732644529,-450.0,0.00029041,5]
[400582258,1767732644538,-432.31509578,0.00029589,5]
[400582260,1767732644547,-287.61899177,0.00029689,2]
[400582262,1767732644557,-642.94,0.00029689,2]
[400582264,1767732644566,-318.86655114,0.0002974,2]
[400582267,1767732644575,-535.04449244,0.0002987,2]
[400582270,1767732644585,-502.0,0.00029877,2]
[400582273,1767732644594,-507.99997,0.00029877,2]
[400582275,1767732644603,-508.0,0.00029877,2]
[400582276,1767732644613,-187.15,0.00030137,2]
[400582279,1767732644624,-300.0,0.00030199,10]
[400582280,1767732644634,-252.62,0.00030287,2]
[400582282,1767732644643,-154.38,0.00030796,2]
[400582284,1767732644652,-258.45,0.00030876,2]
[400582286,1767732644661,-168.49868972,0.00030956,2]
[400582288,1767732644670,-2629.6,0.00031,2]
[400582290,1767732644679,-298.26089446,0.00031058,2]
[400582292,1767732644688,-666.72878,0.00031058,2]
[400582294,1767732644697,-5912.09,0.00031159,2]
[400582296,1767732644706,-502.0,0.00031351,3]
[400582298,1767732644715,-1329.0,0.00031359,2]
[400582300,1767732644725,-3466.0,0.00031359,2]
[400582302,1767732644734,-614.0,0.00031359,2]
[400582304,1767732644743,-433.0,0.00031359,2]
[400582306,1767732644752,-1266.0,0.00031359,2]
[400582308,1767732644761,-1200.0,0.00031359,2]
[400582310,1767732644770,-150.0,0.00031359,2]
[400582312,1767732644780,-2435.0,0.00031359,2]
[400582328,1767732644931,-4817.0,0.00031359,2]
[400582330,1767732644941,-268.41546742,0.00031625,2]
[400582332,1767732644950,-1022.10298149,0.00032218,5]
[400582334,1767732644960,-1005.54286262,0.00032218,5]
[400582336,1767732644969,-1039.92340131,0.00032218,5]
[400582338,1767732644978,-1134.2581702,0.00032218,5]
[400582340,1767732644987,-1075.03478425,0.00032218,5]
[400582342,1767732644999,-1136.96366758,0.00032218,5]
[400582344,1767732645008,-1020.1838158,0.00032218,5]
[400582346,1767732645018,-1044.11293052,0.00032218,5]
[400582348,1767732645027,-1026.19655561,0.00032218,5]
[400582350,1767732645036,-1061.77445658,0.00032218,5]
[400582352,1767732645045,-1719.21424478,0.00032218,5]
[400582354,1767732645054,-309.29654756,0.00032427,2]
[400582356,1767732645063,-691.39774486,0.00032427,2]
[400582358,1767732645072,-304.13144408,0.00032604,3]
[400582360,1767732645081,-10000.0,0.00032777,2]
[400582362,1767732645092,-502.0,0.00032825,5]
[400582364,1767732645102,-200.0,0.00032876,2]
[400582366,1767732645111,-200.0,0.00032876,2]
[400582368,1767732645121,-501.0483089,0.00032877,5]
[400582370,1767732645131,-500.0,0.00032877,7]
[400582372,1767732645140,-500.0,0.00032877,7]
[400582374,1767732645150,-500.0,0.00032877,7]
[400582375,1767732645160,-500.0,0.00032877,7]
[400582376,1767732645170,-500.0,0.00032877,7]
[400582377,1767732645179,-500.0,0.00032877,7]
[400582378,1767732645188,-500.0,0.00032877,7]
[400582379,1767732645198,-500.0,0.00032877,7]
[400582380,1767732645207,-500.0,0.00032877,7]
[400582381,1767732645217,-500.0,0.00032877,7]
[400582382,1767732645226,-500.0,0.00032877,7]
[400582383,1767732645235,-500.0,0.00032877,7]
[400582384,1767732645244,-500.0,0.00032877,7]
[400582385,1767732645253,-500.0,0.00032877,7]
[400582386,1767732645262,-500.0,0.00032877,7]
[400582387,1767732645271,-500.0,0.00032877,7]
[400582389,1767732645280,-500.0,0.00032877,7]
[400582391,1767732645290,-500.0,0.00032877,7]
[400582392,1767732645299,-388.28589621,0.00032877,7]
[400582395,1767732645309,-500.0,0.00032877,7]
[400582396,1767732645318,-500.0,0.00032877,7]
[400582398,1767732645327,-500.0,0.00032877,7]
[400582401,1767732645337,-500.0,0.00032877,7]
[400582403,1767732645347,-500.0,0.00032877,7]
[400582405,1767732645356,-500.0,0.00032877,7]
[400582407,1767732645365,-5263.3,0.000329,14]
[400582408,1767732645374,-670.42,0.000329,14]
[400582411,1767732645383,-1120.22,0.000329,14]
[400582413,1767732645392,-300.0,0.00032999,10]
[400582416,1767732645403,-2629.6,0.00033078,3]
[400582418,1767732645412,-200.0,0.00033205,2]
[400582420,1767732645421,-200.0,0.00033205,2]
[400582422,1767732645430,-1000.0,0.00033519,7]
[400582424,1767732645439,-200.0,0.00033537,2]
[400582426,1767732645449,-200.0,0.00033537,2]
[400582428,1767732645458,-18655.0,0.000336,2]
[400582430,1767732645467,-861.03,0.00033708,2]
[400582432,1767732645476,-320.74051982,0.00033796,2]
[400582434,1767732645485,-478.93347514,0.00033796,2]
[400582436,1767732645494,-200.0,0.00033872,2]
[400582438,1767732645503,-200.0,0.00033872,2]
[400582440,1767732645512,-200.0,0.00034211,2]
[400582442,1767732645521,-200.0,0.00034211,2]
[400582444,1767732645530,-168.51,0.00034236,2]
[400582446,1767732645539,-502.0,0.00034299,7]
[400582448,1767732645548,-5532.0,0.000343,3]
[400582450,1767732645558,-1329.0,0.00034359,2]
[400582452,1767732645567,-3466.0,0.00034359,2]
[400582454,1767732645576,-614.0,0.00034359,2]
[400582456,1767732645586,-433.0,0.00034359,2]
[400582458,1767732645595,-1266.0,0.00034359,2]
[400582460,1767732645605,-1200.0,0.00034359,2]
[400582462,1767732645614,-150.0,0.00034359,2]
[400582464,1767732645623,-2435.0,0.00034359,2]
[400582466,1767732645633,-4817.0,0.00034359,2]
[400582468,1767732645642,-535.04449244,0.0003438,2]
[400582470,1767732645651,-1120.22,0.000345,14]
[400582472,1767732645661,-236.74555436,0.00034834,13]
[400582474,1767732645670,-5532.0,0.00035,5]
[400582476,1767732645679,-861.03,0.00035078,2]
[400582478,1767732645688,-2629.6,0.00035155,4]
[400582480,1767732645697,-332.60791905,0.00035165,2]
[400582482,1767732645706,-416.9074,0.0003522,30]
[400582484,1767732645715,-268.41546742,0.00035544,2]
[400582486,1767732645725,-670.42,0.000356,14]
[400582488,1767732645734,-539.7,0.00035616,32]
[400582490,1767732645743,-362.92767531,0.00035616,64]
[400582492,1767732645752,-612.6,0.00035616,40]
[400582494,1767732645762,-300.0,0.00035616,5]
[400582496,1767732645771,-500.0,0.00035616,7]
[400582498,1767732645780,-500.0,0.00035616,7]
[400582500,1767732645789,-500.0,0.00035616,7]
[400582502,1767732645798,-500.0,0.00035616,7]
[400582504,1767732645808,-500.0,0.00035616,7]
[400582506,1767732645817,-500.0,0.00035616,7]
[400582508,1767732645826,-500.0,0.00035616,7]
[400582510,1767732645838,-500.0,0.00035616,7]
[400582512,1767732645848,-500.0,0.00035616,7]
[400582515,1767732645856,-293.45814038,0.00035616,7]
[400582518,1767732645866,-500.0,0.00035616,7]
[400582520,1767732645876,-500.0,0.00035616,7]
[400582522,1767732645885,-500.0,0.00035616,7]
[400582524,1767732645895,-187.15,0.00035616,2]
[400582526,1767732645904,-502.0,0.00035774,8]
[400582528,1767732645917,-600.0,0.00036438,5]
[400582530,1767732645927,-344.91441206,0.00036534,2]
[400582532,1767732645936,-924.02,0.000366,30]
[400582534,1767732645945,-1120.22,0.000366,14]
[400582536,1767732645956,-2629.6,0.00037232,5]
[400582538,1767732645965,-502.0,0.00037248,10]
[400582540,1767732645975,-900.0,0.0003726,5]
[400582542,1767732645985,-1329.0,0.00037359,2]
[400582544,1767732645994,-3466.0,0.00037359,2]
[400582546,1767732646003,-613.0,0.00037359,2]
[400582548,1767732646012,-433.0,0.00037359,2]
[400582550,1767732646021,-1266.0,0.00037359,2]
[400582552,1767732646030,-1200.0,0.00037359,2]
[400582553,1767732646039,-150.0,0.00037359,2]
[400582556,1767732646049,-2435.0,0.00037359,2]
[400582557,1767732646058,-4817.0,0.00037359,2]
[400582560,1767732646067,-5263.3,0.000374,14]
[400582561,1767732646076,-357.6762453,0.00037903,2]
[400582564,1767732646086,-1200.0,0.00038082,5]
[400582566,1767732646095,-670.42,0.000381,14]
[400582568,1767732646105,-237.12745582,0.00038315,120]
[400582569,1767732646114,-1000.0,0.00038356,5]
[400582571,1767732646123,-2772.06,0.000384,30]
[400582574,1767732646132,-384.68,0.000385,120]
[400582575,1767732646141,-1000.0,0.00038674,7]
[400582577,1767732646150,-502.0,0.00038722,12]
[400582579,1767732646160,-992.86947112,0.00038767,5]
[400582581,1767732646169,-462.2012,0.00038888,30]
[400582583,1767732646178,-535.04449244,0.00038891,2]
[400582585,1767732646187,-1120.22,0.000389,14]
[400582587,1767732646197,-1500.0,0.00038904,5]
[400582590,1767732646206,-3000.0,0.00039,30]
[400582591,1767732646216,-200.0,0.00039117,2]
[400582593,1767732646225,-200.0,0.00039117,2]
[400582595,1767732646235,-200.0,0.00039117,2]
[400582597,1767732646243,-200.0,0.00039117,2]
[400582599,1767732646253,-200.0,0.00039117,2]
[400582601,1767732646262,-200.0,0.00039117,2]
[400582603,1767732646271,-200.0,0.00039117,2]
[400582605,1767732646280,-200.0,0.00039117,2]
[400582607,1767732646289,-200.0,0.00039117,2]
[400582609,1767732646299,-200.0,0.00039117,2]
[400582611,1767732646308,-200.0,0.00039117,2]
[400582613,1767732646317,-200.0,0.00039117,2]
[400582615,1767732646326,-200.0,0.00039117,2]
[400582617,1767732646335,-200.0,0.00039117,2]
[400582619,1767732646344,-200.0,0.00039117,2]
[400582621,1767732646353,-200.0,0.00039117,2]
[400582623,1767732646363,-200.0,0.00039117,2]
[400582625,1767732646372,-200.0,0.00039117,2]
[400582627,1767732646381,-170.0,0.00039117,2]
[400582629,1767732646390,-200.0,0.00039117,2]
[400582631,1767732646399,-200.0,0.00039117,2]
[400582633,1767732646408,-200.0,0.00039117,2]
[400582635,1767732646417,-200.0,0.00039117,2]
[400582637,1767732646427,-200.0,0.00039117,2]
[400582639,1767732646436,-200.0,0.00039117,2]
[400582641,1767732646446,-200.0,0.00039117,2]
[400582643,1767732646455,-200.0,0.00039117,2]
[400582645,1767732646463,-200.0,0.00039117,2]
[400582647,1767732646472,-200.0,0.00039117,2]
[400582649,1767732646481,-200.0,0.00039117,2]
[400582651,1767732646490,-200.0,0.00039117,2]
[400582653,1767732646499,-200.0,0.00039117,2]
[400582655,1767732646508,-200.0,0.00039117,2]
[400582657,1767732646518,-200.0,0.00039117,2]
[400582659,1767732646527,-200.0,0.00039117,2]
[400582660,1767732646536,-200.0,0.00039117,2]
[400582662,1767732646544,-200.0,0.00039117,2]
[400582664,1767732646554,-1551.65362228,0.00039138,2]
[400582666,1767732646563,-1551.65362228,0.00039138,2]
[400582668,1767732646573,-242.47584735,0.00039272,2]
[400582670,1767732646583,-1825.802,0.00039296,54]
[400582672,1767732646592,-2629.6,0.00039309,6]
[400582674,1767732646601,-268.41546742,0.00039463,2]
[400582676,1767732646610,-670.42,0.000396,14]
[400582678,1767732646620,-1000.0,0.000396,7]
[400582680,1767732646630,-1306.08924953,0.00039726,5]
[400582682,1767732646640,-152.0,0.0004,120]
[400582684,1767732646649,-152.0,0.0004,120]
[400582686,1767732646658,-160.0,0.0004,33]
[400582688,1767732646668,-160.0,0.0004,33]
[400582690,1767732646678,-160.0,0.0004,33]
[400582692,1767732646688,-160.0,0.0004,33]
[400582694,1767732646697,-231.2,0.0004,33]
[400582696,1767732646706,-5122.62720437,0.0004,12]
[400582699,1767732646716,-5000.78965432,0.0004,13]
[400582701,1767732646725,-3000.0,0.0004,30]
[400582702,1767732646735,-3000.0,0.0004,30]
[400582705,1767732646746,-3000.0,0.0004,30]
[400582706,1767732646755,-502.0,0.00040196,13]
[400582708,1767732646764,-1120.22,0.000402,14]
[400582711,1767732646774,-1053.15481247,0.00040274,50]
[400582712,1767732646783,-1052.36649585,0.00040274,50]
[400582714,1767732646793,-1009.15796176,0.00040274,50]
[400582716,1767732646802,-1105.58687019,0.00040274,50]
[400582718,1767732646811,-1046.03878321,0.00040274,50]
[400582720,1767732646821,-1112.73570533,0.00040274,50]
[400582722,1767732646834,-1032.47282844,0.00040274,50]
[400582724,1767732646843,-1105.61835889,0.00040274,50]
[400582727,1767732646852,-465.27484986,0.000403,120]
[400582729,1767732646865,-3466.0,0.00040359,2]
[400582731,1767732646875,-433.0,0.00040359,2]
[400582733,1767732646884,-1266.0,0.00040359,2]
[400582735,1767732646894,-2435.0,0.00040359,2]
[400582737,1767732646906,-4817.0,0.00040359,2]
[400582739,1767732646915,-210.51,0.00040363,14]
[400582741,1767732646925,-5263.3,0.000404,14]
[400582743,1767732646934,-160.0,0.000405,35]
[400582745,1767732646942,-1000.0,0.00040592,7]
[400582747,1767732646953,-152.0,0.000406,120]
[400582749,1767732646962,-152.0,0.000407,120]
[400582751,1767732646971,-6156.0,0.000407,117]
[400582753,1767732646980,-153.0,0.0004072,120]
[400582755,1767732646989,-153.0,0.00040762,120]
[400582757,1767732646998,-153.0,0.0004082,120]
[400582759,1767732647007,-258.45,0.00040848,14]
[400582761,1767732647017,-20505.0,0.00040856,30]
[400582777,1767732647156,-153.0,0.00040862,120]
[400582779,1767732647166,-168.51,0.00040873,14]
[400582781,1767732647175,-153.0,0.0004092,120]
[400582783,1767732647184,-153.0,0.00040962,120]
[400582785,1767732647193,-199.49149987,0.00041,2]
[400582787,1767732647203,-1161.89680024,0.00041,30]
[400582789,1767732647211,-160.16882997,0.00041,15]
[400582791,1767732647220,-612.0,0.00041,30]
[400582793,1767732647229,-200.0,0.00041,30]
[400582795,1767732647238,-300.0,0.00041,30]
[400582797,1767732647247,-978.0,0.00041,30]
[400582799,1767732647255,-153.0,0.0004102,120]
[400582801,1767732647266,-25000.0,0.00041043,15]
[400582803,1767732647275,-25000.0,0.00041052,15]
[400582805,1767732647284,-25000.0,0.00041061,15]
[400582807,1767732647293,-153.0,0.00041062,120]
[400582809,1767732647303,-25000.0,0.0004107,15]
[400582811,1767732647312,-25000.0,0.00041078,15]
[400582813,1767732647321,-25000.0,0.00041087,15]
[400582815,1767732647330,-151.0,0.00041093,14]
[400582817,1767732647339,-500.0,0.00041095,120]
[400582819,1767732647348,-500.0,0.00041095,120]
[400582820,1767732647358,-500.0,0.00041095,120]
[400582822,1767732647367,-500.0,0.00041095,120]
[400582824,1767732647376,-500.0,0.00041095,120]
[400582827,1767732647385,-500.0,0.00041095,120]
[400582830,1767732647393,-500.0,0.00041095,120]
[400582832,1767732647403,-500.0,0.00041095,2]
[400582834,1767732647413,-500.0,0.00041095,2]
[400582836,1767732647422,-361.44959845,0.00041095,2]
[400582839,1767732647432,-688.95,0.00041095,2]
[400582840,1767732647441,-688.95,0.00041095,2]
[400582842,1767732647449,-688.95,0.00041095,2]
[400582844,1767732647458,-688.95,0.00041095,2]
[400582846,1767732647467,-688.95,0.00041095,2]
[400582848,1767732647476,-688.95,0.00041095,2]
[400582850,1767732647486,-688.95,0.00041095,2]
[400582852,1767732647495,-688.95,0.00041095,2]
[400582855,1767732647505,-688.95,0.00041095,2]
[400582856,1767732647514,-688.95,0.00041095,2]
[400582858,1767732647523,-688.95,0.00041095,2]
[400582861,1767732647532,-688.95,0.00041095,2]
[400582862,1767732647541,-688.95,0.00041095,2]
[400582864,1767732647551,-688.95,0.00041095,2]
[400582866,1767732647560,-688.95,0.00041095,2]
[400582868,1767732647569,-688.95,0.00041095,2]
[400582870,1767732647578,-688.95,0.00041095,2]
[400582873,1767732647588,-688.95,0.00041095,2]
[400582875,1767732647597,-688.95,0.00041095,2]
[400582876,1767732647605,-688.95,0.00041095,2]
[400582877,1767732647614,-688.95,0.00041095,2]
[400582878,1767732647623,-688.95,0.00041095,2]
[400582879,1767732647634,-688.95,0.00041095,2]
[400582881,1767732647643,-688.97013634,0.00041095,2]
[400582883,1767732647652,-1000.0,0.00041095,2]
[400582885,1767732647661,-1000.0,0.00041095,2]
[400582887,1767732647670,-1000.0,0.00041095,2]
[400582889,1767732647679,-1000.0,0.00041095,2]
[400582891,1767732647688,-1076.95721268,0.00041095,2]
[400582893,1767732647698,-500.0,0.00041095,2]
[400582895,1767732647708,-500.0,0.00041095,2]
[400582898,1767732647719,-500.0,0.00041095,2]
[400582899,1767732647728,-526.89052971,0.00041095,2]
[400582902,1767732647737,-500.0,0.00041095,2]
[400582904,1767732647747,-500.0,0.00041095,2]
[400582906,1767732647758,-500.0,0.00041095,2]
[400582908,1767732647769,-500.0,0.00041095,2]
[400582910,1767732647779,-500.0,0.00041095,2]
[400582912,1767732647789,-500.0,0.00041095,2]
[400582913,1767732647801,-500.0,0.00041095,2]
[400582916,1767732647814,-500.0,0.00041095,2]
[400582918,1767732647825,-500.0,0.00041095,2]
[400582920,1767732647837,-500.0,0.00041095,2]
[400582922,1767732647845,-500.0,0.00041095,2]
[400582924,1767732647855,-500.0,0.00041095,2]
[400582926,1767732647864,-500.0,0.00041095,2]
[400582928,1767732647874,-500.0,0.00041095,2]
[400582930,1767732647884,-500.0,0.00041095,2]
[400582932,1767732647893,-500.0,0.00041095,2]
[400582934,1767732647903,-500.0,0.00041095,2]
[400582936,1767732647913,-500.0,0.00041095,2]
[400582937,1767732647923,-500.0,0.00041095,2]
[400582940,1767732647932,-500.0,0.00041095,2]
[400582942,1767732647942,-500.0,0.00041095,2]
[400582944,1767732647954,-162.71277919,0.00041095,2]
[400582946,1767732647963,-500.0,0.00041095,2]
[400582948,1767732647972,-500.0,0.00041095,2]
[400582950,1767732647981,-500.0,0.00041095,2]
[400582952,1767732647990,-500.0,0.00041095,2]
[400582954,1767732647999,-500.0,0.00041095,2]
[400582956,1767732648008,-500.0,0.00041095,2]
[400582958,1767732648017,-500.0,0.00041095,2]
[400582960,1767732648026,-500.0,0.00041095,2]
[400582962,1767732648035,-500.0,0.00041095,2]
[400582964,1767732648043,-500.0,0.00041095,2]
[400582966,1767732648052,-500.0,0.00041095,2]
[400582968,1767732648061,-500.0,0.00041095,2]
[400582970,1767732648070,-500.0,0.00041095,2]
[400582972,1767732648078,-500.0,0.00041095,2]
[400582974,1767732648087,-500.0,0.00041095,2]
[400582976,1767732648096,-500.0,0.00041095,2]
[400582978,1767732648106,-500.0,0.00041095,2]
[400582979,1767732648116,-500.0,0.00041095,2]
[400582981,1767732648127,-500.0,0.00041095,2]
[400582983,1767732648136,-500.0,0.00041095,2]
[400582985,1767732648146,-500.0,0.00041095,2]
[400582987,1767732648155,-192.03537295,0.00041095,2]
[400582989,1767732648164,-300.0,0.00041095,2]
[400582991,1767732648173,-300.0,0.00041095,2]
[400582993,1767732648186,-300.0,0.00041095,2]
[400582995,1767732648195,-300.0,0.00041095,2]
[400582998,1767732648205,-300.0,0.00041095,2]
[400582999,1767732648214,-300.0,0.00041095,2]
[400583001,1767732648224,-300.0,0.00041095,2]
[400583003,1767732648240,-300.0,0.00041095,2]
[400583005,1767732648248,-300.0,0.00041095,2]
[400583007,1767732648257,-404.81,0.00041095,2]
[400583009,1767732648266,-300.0,0.00041095,2]
[400583011,1767732648275,-6000.0,0.00041095,5]
[400583013,1767732648284,-4000.0,0.00041095,5]
[400583015,1767732648294,-999.0,0.00041095,120]
[400583017,1767732648303,-500.0,0.00041095,2]
[400583019,1767732648312,-500.0,0.00041095,2]
[400583021,1767732648321,-500.0,0.00041095,2]
[400583024,1767732648335,-500.0,0.00041095,2]
[400583026,1767732648344,-500.0,0.00041095,2]
[400583028,1767732648354,-500.0,0.00041095,2]
[400583030,1767732648363,-500.0,0.00041095,2]
[400583032,1767732648372,-500.0,0.00041095,2]
[400583034,1767732648382,-500.0,0.00041095,2]
[400583036,1767732648391,-500.0,0.00041095,2]
[400583038,1767732648400,-500.0,0.00041095,2]
[400583040,1767732648410,-500.0,0.00041095,2]
[400583042,1767732648419,-500.0,0.00041095,2]
[400583044,1767732648428,-500.0,0.00041095,2]
[400583046,1767732648437,-500.0,0.00041095,2]
[400583048,1767732648446,-500.0,0.00041095,2]
[400583050,1767732648455,-500.0,0.00041095,2]
[400583052,1767732648464,-500.0,0.00041095,2]
[400583054,1767732648473,-500.0,0.00041095,2]
[400583056,1767732648482,-495.60848434,0.00041095,2]
[400583058,1767732648491,-500.0,0.00041095,2]
[400583060,1767732648501,-500.0,0.00041095,2]
[400583062,1767732648510,-500.0,0.00041095,2]
[400583064,1767732648520,-500.0,0.00041095,2]
[400583066,1767732648529,-500.0,0.00041095,2]
[400583068,1767732648538,-632.83,0.00041096,120]
[400583070,1767732648549,-150.0,0.00041096,10]
[400583072,1767732648559,-150.0,0.00041096,10]
[400583074,1767732648568,-254.0,0.00041096,30]
[400583076,1767732648577,-2000.0,0.00041096,13]
[400583078,1767732648586,-2000.0,0.00041096,13]
[400583080,1767732648595,-2000.0,0.00041096,13]
[400583082,1767732648605,-2000.0,0.00041096,13]
[400583084,1767732648614,-2000.0,0.00041096,13]
[400583086,1767732648624,-2000.0,0.00041096,13]
[400583088,1767732648633,-2000.0,0.00041096,13]
[400583090,1767732648643,-2000.0,0.00041096,13]
[400583092,1767732648652,-2000.0,0.00041096,13]
[400583094,1767732648661,-2000.0,0.00041096,13]
[400583096,1767732648671,-1312.0,0.00041096,13]
[400583098,1767732648680,-25000.0,0.00041096,15]
[400583100,1767732648689,-899.5,0.00041096,76]
[400583102,1767732648698,-21628.30166643,0.00041096,15]
[400583104,1767732648707,-1021.0,0.00041096,63]
[400583106,1767732648716,-670.42,0.000411,14]
[400583108,1767732648729,-1120.22,0.000411,14]
[400583110,1767732648738,-153.0,0.0004112,120]
[400583112,1767732648748,-153.0,0.00041162,120]
[400583114,1767732648758,-153.0,0.0004122,120]
[400583116,1767732648767,-153.0,0.00041262,120]
[400583118,1767732648778,-1353.9,0.00041275,30]
[400583120,1767732648787,-20505.0,0.00041277,30]
[400583122,1767732648797,-152.0,0.000413,120]
[400583124,1767732648806,-674.85512343,0.00041344,14]
[400583126,1767732648815,-153.0,0.00041362,120]
[400583128,1767732648825,-2629.6,0.00041387,30]
[400583130,1767732648838,-152.0,0.000414,120]
[400583132,1767732648847,-153.0,0.00041462,120]
[400583134,1767732648857,-8127.02166461,0.000415,120]
[400583136,1767732648866,-160.0,0.000415,39]
[400583138,1767732648877,-772.63,0.00041534,30]
[400583140,1767732648886,-153.0,0.00041562,120]
[400583142,1767732648896,-208.38787665,0.00041644,10]
[400583144,1767732648906,-153.0,0.00041662,120]
[400583146,1767732648915,-502.0,0.0004167,15]
[400583148,1767732648925,-20505.0,0.00041698,30]
[400583150,1767732648934,-1000.0,0.0004176,21]
[400583152,1767732648943,-153.0,0.00041762,120]
[400583154,1767732648952,-466.43,0.00041808,30]
[400583156,1767732648962,-465.27484984,0.00041838,120]
[400583158,1767732648971,-1000.0,0.00041849,14]
[400583160,1767732648980,-833.0,0.0004185,11]
[400583162,1767732648989,-153.0,0.00041862,120]
[400583164,1767732648999,-152.0,0.000419,120]
[400583166,1767732649008,-625.59098541,0.000419,120]
[400583168,1767732649017,-625.59098531,0.000419,120]
[400583170,1767732649027,-625.59098531,0.000419,120]
[400583172,1767732649036,-625.59098531,0.000419,120]
[400583174,1767732649045,-625.59098531,0.000419,120]
[400583176,1767732649054,-625.59098531,0.000419,120]
[400583178,1767732649063,-625.59098531,0.000419,120]
[400583180,1767732649072,-625.59098531,0.000419,120]
[400583182,1767732649081,-625.59098531,0.000419,120]
[400583184,1767732649091,-625.59098531,0.000419,120]
[400583205,1767732649273,-625.59098531,0.000419,120]
[400583207,1767732649283,-625.59098531,0.000419,120]
[400583209,1767732649292,-625.59098531,0.000419,120]
[400583211,1767732649302,-625.59098531,0.000419,120]
[400583213,1767732649311,-625.59098531,0.000419,120]
[400583215,1767732649319,-625.59098531,0.000419,120]
[400583217,1767732649328,-625.59098531,0.000419,120]
[400583218,1767732649337,-625.59098531,0.000419,120]
[400583219,1767732649347,-200.0,0.00041918,10]
[400583220,1767732649355,-625.59098531,0.00041925,120]
[400583221,1767732649365,-153.0,0.00041962,120]
[400583222,1767732649386,-1353.9,0.00041996,30]
[400583223,1767732649407,-199.0,0.00042,30]
[400583224,1767732649418,-1032.62372196,0.00042,30]
[400583225,1767732649427,-1120.22,0.00042,14]
[400583226,1767732649436,-153.0,0.00042062,120]
[400583227,1767732649446,-152.0,0.000421,120]
[400583228,1767732649454,-670.42,0.000421,14]
[400583229,1767732649463,-20505.0,0.00042119,30]
[400583230,1767732649475,-153.0,0.00042162,120]
[400583231,1767732649484,-1000.0,0.00042169,14]
[400583232,1767732649495,-999.0,0.00042191,120]
[400583233,1767732649504,-1000.0,0.000422,7]
[400583234,1767732649513,-153.0,0.00042262,120]
[400583235,1767732649522,-5263.3,0.000423,14]
[400583236,1767732649532,-1000.0,0.00042305,14]
[400583237,1767732649541,-11844.77875623,0.00042346,5]
[400583238,1767732649551,-153.0,0.00042362,120]
[400583239,1767732649561,-300.0,0.00042446,2]
[400583240,1767732649570,-300.0,0.00042455,2]
[400583241,1767732649580,-153.0,0.00042462,120]
[400583242,1767732649589,-661.18,0.00042493,30]
[400583243,1767732649599,-661.18,0.00042493,30]
[400583244,1767732649608,-661.18,0.00042493,30]
[400583245,1767732649617,-661.18,0.00042493,30]